bitfinex/quotes_SOLUSD_20240711
["timestamp","ask_amount","ask_price","bid_price","bid_amount"]
[1720719413096,13.91,139.21,139.18,25.1469]
[1720719413280,7.1825,139.23,139.17,7.1852]
[1720719413281,13.91,139.19,139.17,7.1852]
[1720719414205,13.91,139.19,139.15,25.1512]
[1720719414396,13.91,139.18,139.15,25.1512]
[1720719414598,13.91,139.17,139.15,25.1512]
[1720719415095,13.91,139.18,139.15,25.1512]
[1720719415603,0.34,139.2,139.15,25.1512]
[1720719415784,13.91,139.18,139.15,25.1512]
[1720719416279,13.91,139.16,139.12,17.9691]
[1720719416799,13.91,139.16,139.12,25.1568]
[1720719419702,13.91,139.15,139.12,25.157]
[1720719420279,13.91,139.16,139.12,17.9691]
[1720719420475,0.34,139.17,139.12,17.9691]
[1720719420698,65.34,139.18,139.13,0.46285165]
[1720719420904,13.91,139.16,139.13,7.65015165]
[1720719421100,13.91,139.15,139.12,25.1569]
[1720719422103,13.91,139.14,139.12,25.1569]
[1720719422518,65.34,139.18,139.1,22.6514]
[1720719422519,13.91,139.13,139.1,22.6514]
[1720719422695,13.91,139.13,139.1,7.1887]
[1720719423301,13.91,139.13,139.11,7.1884]
[1720719423994,13.91,139.13,139.12,7.188]
[1720719424193,13.91,139.13,139.08,49.8582]
[1720719424194,13.91,139.15,139.11,17.9712]
[1720719424885,13.91,139.15,139.12,7.1876]
[1720719425389,13.91,139.14,139.11,25.1595]
[1720719426409,13.91,139.15,139.12,7.188]
[1720719428890,13.91,139.15,139.11,17.9712]
[1720719429297,13.91,139.15,139.12,7.1877]
[1720719429707,13.91,139.15,139.13,7.1873]
[1720719429907,7.1854,139.17,139.12,7.1878]
[1720719430107,13.91,139.15,139.12,7.1878]
[1720719430304,13.91,139.15,139.11,25.1595]
[1720719430505,13.91,139.14,139.11,25.1595]
[1720719431719,13.91,139.14,139.12,7.188]
[1720719431921,13.91,139.15,139.12,7.188]
[1720719432219,13.91,139.14,139.11,25.1596]
[1720719433921,13.91,139.13,139.09,25.1633]
[1720719434814,13.91,139.1,139.06,25.1678]
[1720719435000,13.91,139.09,139.06,25.1676]
[1720719435519,7.1885,139.11,139.06,25.1675]
[1720719435707,13.91,139.09,139.06,25.1675]
[1720719436612,13.91,139.09,139.07,7.1904]
[1720719436796,13.91,139.09,139.06,25.1676]
[1720719437294,13.91,139.09,139.07,7.1905]
[1720719437501,13.91,139.09,139.06,25.1676]
[1720719438617,0.34,139.12,139.06,17.9767]
[1720719438618,13.91,139.08,139.06,17.9767]
[1720719438816,13.91,139.07,139.06,17.9767]
[1720719439810,13.91,139.07,139.05,7.1914]
[1720719439998,13.91,139.06,139.05,7.1914]
[1720719440606,13.91,139.07,139.05,7.1914]
[1720719441209,13.91,139.07,139.05,25.1705]
[1720719441410,13.91,139.08,139.06,7.1911]
[1720719441723,13.91,139.09,139.07,7.1906]
[1720719442019,6.8664,139.12,139.05,17.9791]
[1720719442020,13.91,139.08,139.05,25.1705]
[1720719442407,13.91,139.08,139.06,7.1907]
[1720719442818,13.91,139.09,139.06,7.1907]
[1720719444010,0.17,139.1,139.07,7.1905]
[1720719444215,13.91,139.11,139.08,7.1899]
[1720719444598,13.91,139.11,139.07,25.1664]
[1720719444797,23.7138,139.13,139.07,25.1664]
[1720719444798,13.91,139.1,139.07,25.1664]
[1720719445206,13.91,139.1,139.08,7.1899]
[1720719446108,13.91,139.1,139.07,25.1664]
[1720719446302,7.1881,139.12,139.07,25.1664]
[1720719446505,13.91,139.1,139.07,25.1664]
[1720719448425,13.91,139.11,139.07,25.1664]
[1720719449125,13.91,139.1,139.06,7.1909]
[1720719449423,13.91,139.09,139.06,7.1909]
[1720719450205,7.1886,139.11,139.06,7.1909]
[1720719450405,13.91,139.09,139.06,7.1909]
[1720719450622,13.91,139.1,139.06,7.1909]
[1720719452222,13.91,139.09,139.05,31.7189]
[1720719452721,13.91,139.09,139.07,7.1905]
[1720719453227,13.91,139.1,139.07,7.1905]
[1720719455604,13.91,139.1,139.06,7.1909]
[1720719455805,13.91,139.07,139.01,6.6447]
[1720719456026,13.91,139.05,139.02,7.1927]
[1720719456525,13.91,139.06,139.02,7.1927]
[1720719456719,13.91,139.05,139.02,7.1927]
[1720719457231,13.91,139.03,139.01,17.984]
[1720719457624,7.1912,139.06,139.01,17.984]
[1720719457820,13.91,139.03,139.01,25.1775]
[1720719458330,13.91,139.04,139.01,25.1775]
[1720719459632,13.91,139.04,139.02,7.1932]
[1720719460220,13.91,139.04,139.01,25.1775]
[1720719462834,13.91,139.03,139.01,17.984]
[1720719463518,13.91,139.03,139.0,22.2627]
[1720719464321,13.91,139.03,139.0,7.194]
[1720719465329,13.91,139.03,139.01,7.1935]
[1720719465529,13.91,139.04,139.01,7.1935]
[1720719466233,10.38182861,139.07,139.02,7.1931]
[1720719466435,13.91,139.04,139.02,7.1931]
[1720719466617,13.91,139.04,139.01,7.1935]
[1720719466821,13.91,139.04,139.02,7.1931]
[1720719467133,13.91,139.05,139.02,7.1931]
[1720719467631,13.91,139.04,138.99,13.91]
[1720719467820,13.91,139.06,139.03,7.1926]
[1720719468027,7.48578003,139.08,139.04,7.192]
[1720719468216,13.91,139.07,139.04,7.192]
[1720719468616,13.91,139.07,139.04,25.1723]
[1720719469717,7.1896,139.09,139.04,25.1723]
[1720719469931,13.91,139.08,139.04,25.55270286]
[1720719470124,13.91,139.07,139.04,25.1723]
[1720719470319,13.91,139.07,139.04,17.9803]
[1720719471137,13.91,139.07,139.04,25.1722]
[1720719472139,13.91,139.07,139.04,17.9803]
[1720719472739,13.91,139.07,139.04,25.1724]
[1720719473428,13.91,139.07,139.04,17.9803]
[1720719473918,21.1006,139.07,139.02,22.5611]
[1720719474120,13.91,139.06,139.02,22.5611]
[1720719474819,13.91,139.07,139.02,36.4711]
[1720719475845,13.91,139.07,139.03,7.1925]
[1720719476647,7.1897,139.09,139.04,7.1921]
[1720719476825,13.91,139.07,139.04,7.1921]
[1720719477632,10.33724957,139.1,139.06,17.9778]
[1720719477837,21.39544452,139.1,139.06,25.1684]
[1720719478049,13.91,139.1,139.06,25.1684]
[1720719478350,7.1888,139.11,139.06,17.9778]
[1720719478516,13.91,139.1,139.06,39.0788]
[1720719478940,21.0988,139.11,139.06,39.0788]
[1720719479143,21.0988,139.11,139.06,31.8878]
[1720719479329,7.1891,139.1,139.06,33.32578082]
[1720719480033,21.0991,139.1,139.06,13.91]
[1720719480440,21.0991,139.1,139.05,21.1015]
[1720719481145,21.0991,139.1,139.05,13.91]
[1720719481357,21.1003,139.08,139.03,31.5006]
[1720719481643,13.91,139.08,139.04,7.1921]
[1720719483260,13.91,139.08,139.05,7.1916]
[1720719483830,14.25,139.09,139.05,7.1916]
[1720719484838,0.34,139.09,139.06,7.1909]
[1720719485058,13.91,139.11,139.08,7.19]
[1720719485235,14.67944868,139.13,139.08,7.19]
[1720719485430,13.91,139.12,139.08,7.19]
[1720719485628,13.91,139.12,139.07,31.8863]
[1720719485629,13.91,139.12,139.07,39.0767]
[1720719486032,13.91,139.12,139.08,7.19]
[1720719486638,13.91,139.12,139.07,39.0767]
[1720719486838,21.098,139.12,139.07,39.0767]
[1720719487244,14.67725145,139.15,139.09,17.9738]
[1720719487452,14.67725145,139.15,139.09,31.8838]
[1720719487453,13.91,139.14,139.09,31.8838]
[1720719487855,21.097,139.14,139.09,31.8838]
[1720719488155,21.097,139.14,139.09,39.073]
[1720719489650,13.91,139.14,139.1,7.189]
[1720719489853,21.2666,139.15,139.1,21.099]
[1720719491156,21.2666,139.15,139.11,7.1885]
[1720719491157,14.08,139.15,139.11,7.1885]
[1720719491753,0.17,139.15,139.11,21.0985]
[1720719491952,21.2661,139.16,139.11,21.0985]
[1720719492250,7.1866,139.15,139.11,13.91]
[1720719492653,21.0966,139.15,139.1,21.0988]
[1720719493554,7.1866,139.15,139.11,13.91]
[1720719494336,21.0966,139.15,139.1,21.0988]
[1720719495357,21.266,139.16,139.11,21.0984]
[1720719495853,21.0964,139.15,139.1,21.0989]
[1720719496165,21.0971,139.14,139.09,39.0731]
[1720719496365,7.1871,139.14,139.1,13.91]
[1720719496554,21.0971,139.14,139.09,39.0731]
[1720719496854,21.0966,139.15,139.1,21.0989]
[1720719497754,13.91,139.15,139.11,13.91]
[1720719498336,14.08,139.16,139.11,13.91]
[1720719498533,0.17,139.16,139.12,21.098]
[1720719498736,0.34,139.16,139.12,21.098]
[1720719498958,0.34,139.16,139.12,13.91]
[1720719499353,7.5261,139.16,139.12,13.91]
[1720719500648,7.1864,139.15,139.12,13.91]
[1720719502245,7.5261,139.16,139.12,13.91]
[1720719502576,7.1854,139.17,139.14,13.91]
[1720719503149,7.1851,139.18,139.14,13.91]
[1720719503467,31.01879569,139.21,139.15,14.61362071]
[1720719503468,7.1847,139.19,139.15,14.61362071]
[1720719503646,7.1847,139.19,139.15,13.91]
[1720719504049,7.1847,139.19,139.15,14.6135198]
[1720719504249,7.1849,139.18,139.15,14.6135198]
[1720719504649,7.1846,139.19,139.15,14.6135198]
[1720719504849,7.1846,139.19,139.16,13.91]
[1720719507077,7.1846,139.19,139.17,14.61341869]
[1720719507256,7.1846,139.19,139.17,13.91]
[1720719507865,14.66996098,139.21,139.17,13.91]
[1720719508169,7.1839,139.21,139.17,13.91]
[1720719509365,7.1839,139.21,139.17,15.34685889]
[1720719510168,7.1839,139.21,139.17,13.91]
[1720719510747,7.1839,139.2,139.17,13.91]
[1720719511067,7.1839,139.2,139.18,1.43684461]
[1720719511449,7.1836,139.21,139.18,1.43684461]
[1720719514960,7.1836,139.21,139.17,13.91]
[1720719516288,7.184,139.2,139.17,13.91]
[1720719517246,7.184,139.2,139.15,7.1862]
[1720719517447,21.094,139.2,139.15,21.0962]
[1720719518878,21.094,139.2,139.15,7.1862]
[1720719519170,21.094,139.2,139.15,21.0962]
[1720719519751,21.0944,139.19,139.14,25.1536]
[1720719519958,13.91,139.18,139.15,7.1864]
[1720719520777,13.91,139.19,139.15,7.1864]
[1720719521166,7.1835,139.21,139.17,7.1854]
[1720719521371,13.91,139.22,139.18,7.1848]
[1720719522379,21.0928,139.22,139.17,21.0952]
[1720719523054,21.0928,139.22,139.17,13.91]
[1720719523055,13.91,139.22,139.17,13.91]
[1720719523252,13.91,139.22,139.18,7.1848]
[1720719524175,21.0929,139.22,139.18,7.1848]
[1720719526072,21.0929,139.22,139.17,21.0952]
[1720719526275,7.1834,139.21,139.17,13.91]
[1720719526470,21.0934,139.21,139.16,39.0603]
[1720719526676,13.91,139.2,139.16,25.1503]
[1720719527069,13.91,139.18,139.14,7.1867]
[1720719527981,13.91,139.18,139.15,7.1864]
[1720719528876,13.91,139.19,139.16,7.1859]
[1720719529265,13.91,139.19,139.15,7.1863]
[1720719529865,13.91,139.19,139.16,7.1858]
[1720719532787,13.91,139.19,139.15,7.1863]
[1720719532966,13.91,139.18,139.15,7.1863]
[1720719533669,13.91,139.18,139.16,7.1858]
[1720719533871,13.91,139.19,139.16,7.1858]
[1720719534380,13.91,139.19,139.16,25.1506]
[1720719534578,13.91,139.18,139.16,25.1506]
[1720719534792,13.91,139.18,139.16,17.9648]
[1720719535470,13.91,139.19,139.16,25.1507]
[1720719536391,15.9849,139.2,139.16,25.1507]
[1720719536591,14.25,139.19,139.16,25.1507]
[1720719540400,14.25,139.19,139.16,17.9648]
[1720719540577,13.91,139.18,139.15,7.1863]
[1720719541804,13.91,139.18,139.16,7.1858]
[1720719543980,13.91,139.18,139.15,7.1863]
[1720719546419,12.96454002,139.17,139.15,7.1863]
[1720719546594,13.91,139.18,139.15,7.1863]
[1720719547407,12.96462479,139.17,139.15,7.1863]
[1720719547643,13.91,139.18,139.15,7.1863]
[1720719547791,12.96484353,139.17,139.15,7.1863]
[1720719547991,13.91,139.18,139.15,7.1863]
[1720719548193,12.96484376,139.17,139.15,7.1863]
[1720719548487,7.4905347,139.21,139.16,17.9648]
[1720719548815,7.4905347,139.21,139.16,25.1505]
[1720719548816,14.08,139.2,139.16,25.1505]
[1720719548994,14.6740347,139.21,139.17,7.1854]
[1720719549196,13.91,139.2,139.17,7.1854]
[1720719549506,13.91,139.2,139.16,25.1505]
[1720719549815,21.0935,139.21,139.16,39.0605]
[1720719550894,7.1835,139.21,139.16,39.0605]
[1720719551085,7.1835,139.21,139.17,7.1854]
[1720719551286,10.46273396,139.22,139.17,7.1854]
[1720719551485,21.4334,139.21,139.16,39.0605]
[1720719551692,13.91,139.2,139.16,39.0605]
[1720719553009,21.0939,139.2,139.16,39.0605]
[1720719553521,13.91,139.2,139.16,39.0605]
[1720719554204,21.0939,139.2,139.17,1.03422414]
[1720719555008,21.0934,139.21,139.18,1.03414983]
[1720719555214,7.183,139.22,139.17,8.57627409]
[1720719555412,7.183,139.22,139.18,1.39091442]
[1720719555813,7.49991072,139.23,139.18,19.35321442]
[1720719556019,7.1809,139.26,139.21,7.1833]
[1720719556202,21.0909,139.26,139.22,1.39051478]
[1720719556522,7.1819,139.24,139.2,17.9593]
[1720719556822,21.0916,139.25,139.21,1.40372568]
[1720719558726,21.0916,139.25,139.2,39.0531]
[1720719559013,7.1816,139.25,139.2,39.0531]
[1720719559212,21.0916,139.25,139.2,39.0531]
[1720719562332,13.91,139.25,139.21,7.1832]
[1720719562535,21.0909,139.26,139.21,21.0932]
[1720719562891,7.1813,139.25,139.21,21.0932]
[1720719563093,7.1813,139.25,139.21,13.91]
[1720719563296,21.0913,139.25,139.2,39.0529]
[1720719565800,7.1819,139.24,139.2,25.1429]
[1720719565999,13.91,139.25,139.19,7.1843]
[1720719566000,21.0924,139.23,139.19,7.1843]
[1720719566199,13.91,139.22,139.18,7.1848]
[1720719566429,13.91,139.21,139.17,47.3577]
[1720719566634,13.91,139.21,139.18,7.1849]
[1720719567333,7.1829,139.22,139.17,40.1725]
[1720719567334,13.91,139.2,139.17,25.1477]
[1720719568215,13.91,139.2,139.18,7.1849]
[1720719568429,13.91,139.21,139.18,7.1849]
[1720719569823,13.91,139.21,139.17,25.1479]
[1720719569824,13.91,139.2,139.17,25.1479]
[1720719570017,13.91,139.19,139.16,7.1858]
[1720719570424,7.1841,139.2,139.14,47.8904]
[1720719570626,13.91,139.18,139.15,7.1861]
[1720719571938,13.91,139.17,139.15,7.1861]
[1720719572147,13.91,139.17,139.14,25.1532]
[1720719572348,13.91,139.15,139.13,7.1874]
[1720719574538,13.91,139.16,139.14,7.187]
[1720719575442,13.91,139.16,139.15,7.1864]
[1720719576144,13.91,139.16,139.14,7.1868]
[1720719576323,7.1844,139.19,139.14,7.1868]
[1720719576526,0.34,139.21,139.15,17.9657]
[1720719576725,13.91,139.18,139.15,17.9657]
[1720719577042,13.91,139.18,139.16,7.1859]
[1720719577621,13.91,139.18,139.15,25.152]
[1720719579524,13.91,139.18,139.15,17.9657]
[1720719582347,13.91,139.18,139.14,7.1867]
[1720719582550,13.91,139.17,139.14,7.1867]
[1720719583040,13.91,139.17,139.13,7.1874]
[1720719583348,13.91,139.17,139.14,7.1868]
[1720719583647,13.91,139.18,139.14,7.1868]
[1720719584545,0.34,139.21,139.14,17.9675]
[1720719584840,7.1834,139.21,139.16,7.1855]
[1720719585046,13.91,139.21,139.17,7.1854]
[1720719585645,21.0935,139.21,139.16,21.0957]
[1720719586435,21.0935,139.21,139.16,7.1857]
[1720719586637,21.094,139.2,139.15,39.0611]
[1720719587447,21.094,139.2,139.16,7.1859]
[1720719588429,13.91,139.2,139.16,7.1859]
[1720719588945,7.1835,139.21,139.16,7.1859]
[1720719588946,21.0935,139.21,139.16,21.0959]
[1720719600360,7.1835,139.21,139.16,21.0959]
[1720719600654,21.0935,139.21,139.16,21.0959]
[1720719602650,13.91,139.2,139.16,7.1859]
[1720719603470,13.91,139.2,139.15,13.91]
[1720719603772,13.91,139.17,139.14,7.1866]
[1720719604057,21.0955,139.17,139.13,25.1561]
[1720719604278,13.91,139.16,139.13,17.9687]
[1720719604443,13.91,139.15,139.13,17.9687]
[1720719604639,13.91,139.16,139.13,17.9687]
[1720719604865,13.91,139.16,139.11,35.582]
[1720719605062,13.91,139.16,139.12,7.1877]
[1720719605256,13.91,139.16,139.12,25.1577]
[1720719605758,13.91,139.16,139.13,7.1874]
[1720719606365,18.1296,139.21,139.12,17.97]
[1720719606366,13.91,139.17,139.14,7.1869]
[1720719606745,7.1845,139.19,139.14,7.1869]
[1720719606951,13.91,139.17,139.14,7.1869]
[1720719607352,7.1845,139.19,139.15,7.1864]
[1720719607575,13.91,139.18,139.15,7.1864]
[1720719607748,13.91,139.19,139.15,7.1864]
[1720719608078,21.264,139.2,139.15,21.0964]
[1720719608249,13.91,139.19,139.15,7.1864]
[1720719608749,7.1834,139.21,139.16,7.1859]
[1720719609064,13.91,139.19,139.16,7.1859]
[1720719609360,13.91,139.18,139.14,17.9672]
[1720719609768,13.91,139.16,139.12,7.1878]
[1720719609967,7.1854,139.17,139.12,7.188]
[1720719609968,13.91,139.15,139.12,7.188]
[1720719610341,7.1855,139.17,139.13,7.1874]
[1720719610565,13.91,139.16,139.13,7.1874]
[1720719611149,13.91,139.16,139.14,7.1869]
[1720719612468,13.91,139.16,139.13,25.1559]
[1720719614070,13.91,139.18,139.14,7.1868]
[1720719614250,13.91,139.18,139.15,7.1864]
[1720719614446,13.91,139.18,139.14,7.1867]
[1720719615474,13.91,139.17,139.13,17.9686]
[1720719615666,13.91,139.16,139.13,17.9686]
[1720719617463,13.91,139.16,139.13,25.156]
[1720719618558,13.91,139.15,139.13,25.156]
[1720719618752,13.91,139.16,139.13,25.156]
[1720719619361,13.91,139.14,139.11,25.1596]
[1720719619672,13.91,139.13,139.11,25.1597]
[1720719620373,13.91,139.14,139.12,7.188]
[1720719621356,13.91,139.15,139.12,7.188]
[1720719621789,13.91,139.15,139.13,7.1874]
[1720719622381,13.91,139.16,139.14,7.187]
[1720719622863,13.91,139.15,139.13,25.1557]
[1720719623064,13.91,139.15,139.13,17.9684]
[1720719624474,13.91,139.14,139.13,17.9684]
[1720719625461,13.91,139.14,139.13,25.1559]
[1720719625959,13.91,139.16,139.14,7.187]
[1720719626186,23.35704427,139.18,139.13,17.9684]
[1720719626187,7.49374427,139.18,139.15,7.1864]
[1720719626382,13.91,139.17,139.15,7.1864]
[1720719627062,13.91,139.16,139.14,7.1867]
[1720719627863,13.91,139.16,139.13,25.1556]
[1720719630676,13.91,139.16,139.14,7.1869]
[1720719632267,13.91,139.16,139.13,25.1557]
[1720719633478,13.91,139.16,139.14,7.1869]
[1720719633676,13.91,139.16,139.13,25.1558]
[1720719634596,13.91,139.16,139.14,7.1869]
[1720719635385,13.91,139.16,139.13,25.1557]
[1720719637182,13.91,139.15,139.13,25.1557]
[1720719637666,13.91,139.15,139.13,17.9684]
[1720719638071,13.91,139.14,139.11,7.1883]
[1720719638576,13.91,139.14,139.12,7.1879]
[1720719639673,7.1859,139.16,139.12,7.1879]
[1720719639874,0.17,139.17,139.1,13.91]
[1720719640080,13.91,139.15,139.11,13.91]
[1720719640293,13.91,139.15,139.13,25.1557]
[1720719642378,13.91,139.15,139.1,17.9715]
[1720719642596,13.91,139.15,139.12,7.1879]
[1720719643501,13.91,139.15,139.11,7.1884]
[1720719651797,13.91,139.15,139.12,7.1879]
[1720719652209,13.91,139.15,139.11,7.1883]
[1720719654605,21.267,139.14,139.1,25.1604]
[1720719655113,13.91,139.13,139.1,25.1604]
[1720719658294,13.91,139.13,139.11,7.1883]
[1720719659013,35.6965,139.17,139.12,17.97]
[1720719659192,13.91,139.15,139.12,17.97]
[1720719659390,13.91,139.16,139.12,17.97]
[1720719660000,20.0,139.15,139.06,22.6082]
[1720719660205,7.1875,139.13,139.08,7.1898]
[1720719660494,13.91,139.12,139.08,7.1898]
[1720719660692,13.91,139.11,139.08,7.1898]
[1720719662697,13.91,139.09,139.06,7.191]
[1720719662895,13.91,139.08,139.04,17.9798]
[1720719663412,13.91,139.08,139.05,7.1915]
[1720719665528,23.5033,139.11,139.06,25.1685]
[1720719665731,13.91,139.1,139.06,25.1685]
[1720719666105,16.3146,139.11,139.07,7.1903]
[1720719666409,13.91,139.1,139.07,7.1903]
[1720719666920,13.91,139.1,139.06,25.1685]
[1720719669221,23.5032,139.11,139.06,25.1685]
[1720719669535,7.1876,139.13,139.08,39.0748]
[1720719669706,21.0981,139.12,139.08,31.8849]
[1720719669907,13.91,139.11,139.07,7.1904]
[1720719670105,13.91,139.11,139.07,25.1669]
[1720719670300,21.0981,139.12,139.07,39.0769]
[1720719670818,13.91,139.11,139.07,39.0769]
[1720719674629,21.0981,139.12,139.07,39.0769]
[1720719674804,13.91,139.12,139.08,7.1899]
[1720719675504,7.1877,139.13,139.08,21.0999]
[1720719675705,21.0977,139.13,139.08,21.0999]
[1720719675909,21.0977,139.13,139.09,7.1895]
[1720719676111,21.0977,139.13,139.08,21.0999]
[1720719678443,13.91,139.13,139.07,25.167]
[1720719678615,21.0983,139.12,139.07,25.167]
[1720719679628,21.0983,139.12,139.07,39.077]
[1720719680346,21.0983,139.12,139.08,7.19]
[1720719682032,7.1872,139.14,139.09,7.1895]
[1720719682560,7.1876,139.13,139.08,21.0998]
[1720719683060,7.1876,139.13,139.08,7.1898]
[1720719684247,7.1883,139.12,139.07,25.1669]
[1720719684455,7.1883,139.12,139.07,31.8865]
[1720719684655,7.1883,139.12,139.07,17.9765]
[1720719684821,7.1877,139.13,139.08,7.1898]
[1720719685025,7.1877,139.13,139.09,7.1895]
[1720719685245,7.1872,139.14,139.09,7.1895]
[1720719685442,7.3572,139.14,139.09,7.1895]
[1720719686461,27.48993767,139.15,139.09,31.8837]
[1720719686756,13.91,139.15,139.12,7.188]
[1720719686960,21.0963,139.16,139.12,7.188]
[1720719687929,21.0963,139.16,139.11,39.0696]
[1720719688329,7.1865,139.15,139.11,39.0696]
[1720719689259,21.0961,139.16,139.11,39.0696]
[1720719689868,7.1856,139.17,139.12,7.1878]
[1720719690155,7.1856,139.17,139.13,7.1873]
[1720719690156,21.0956,139.17,139.13,7.1873]
[1720719690737,21.0956,139.17,139.13,21.0973]
[1720719691056,21.0956,139.17,139.13,13.91]
[1720719691774,7.1856,139.17,139.13,21.0973]
[1720719691931,21.0951,139.18,139.13,21.0973]
[1720719692249,7.48801246,139.19,139.15,31.876]
[1720719692436,15.0691,139.22,139.15,39.0622]
[1720719692437,21.0942,139.2,139.15,39.0622]
[1720719693058,7.1835,139.21,139.16,21.0957]
[1720719693255,21.0935,139.21,139.16,21.0957]
[1720719693837,7.1839,139.2,139.16,21.0957]
[1720719694255,7.1839,139.2,139.16,13.91]
[1720719694752,7.1844,139.19,139.16,13.91]
[1720719695255,7.1844,139.19,139.15,39.0623]
[1720719695839,7.1844,139.19,139.15,31.876]
[1720719696427,21.0944,139.19,139.15,17.966]
[1720719698643,21.0944,139.19,139.15,25.1524]
[1720719699855,13.91,139.19,139.15,25.1524]
[1720719700354,21.0945,139.19,139.15,25.1524]
[1720719700657,7.1851,139.18,139.13,29.3563]
[1720719700846,21.0951,139.18,139.14,13.91]
[1720719701550,21.0951,139.18,139.13,36.0791]
[1720719701747,21.0951,139.18,139.14,7.1869]
[1720719701954,21.0951,139.18,139.14,21.0969]
[1720719702150,21.0944,139.19,139.14,39.0644]
[1720719702340,21.0944,139.19,139.15,7.1863]
[1720719703875,13.91,139.2,139.16,25.1507]
[1720719704166,21.0939,139.2,139.16,25.1507]
[1720719706680,21.0939,139.2,139.16,17.9649]
[1720719706974,17.9575,139.22,139.14,7.1867]
[1720719707274,13.91,139.19,139.14,21.0967]
[1720719707454,21.0945,139.19,139.14,21.0967]
[1720719707656,21.0945,139.19,139.15,7.1864]
[1720719708975,45.34,139.21,139.16,7.1858]
[1720719708976,7.184,139.2,139.16,7.1858]
[1720719709344,7.1835,139.21,139.17,7.1852]
[1720719709549,21.0935,139.21,139.17,7.1852]
[1720719710450,21.0935,139.21,139.16,39.0603]
[1720719711248,7.1841,139.2,139.16,39.0603]
[1720719711456,21.0941,139.2,139.16,17.9646]
[1720719711773,7.1841,139.2,139.16,17.9646]
[1720719712072,21.0947,139.19,139.14,25.1541]
[1720719712271,7.1849,139.18,139.14,25.1541]
[1720719712479,21.0949,139.18,139.14,25.1541]
[1720719712800,13.91,139.18,139.14,25.1541]
[1720719713661,13.91,139.18,139.15,7.1863]
[1720719714581,21.0946,139.19,139.15,7.1863]
[1720719714962,21.0946,139.19,139.14,39.0641]
[1720719716589,21.0946,139.19,139.15,7.1864]
[1720719718286,7.1846,139.19,139.15,7.1864]
[1720719718487,21.0946,139.19,139.15,7.1864]
[1720719718798,13.91,139.19,139.16,7.1859]
[1720719719091,21.0941,139.2,139.16,7.1859]
[1720719719591,21.0941,139.2,139.17,7.1853]
[1720719719592,13.91,139.2,139.17,7.1853]
[1720719719773,13.91,139.21,139.18,7.1846]
[1720719719973,13.91,139.22,139.18,25.1469]
[1720719720376,21.0929,139.22,139.18,25.1469]
[1720719721083,23.75534506,139.25,139.18,31.8723]
[1720719721289,13.91,139.24,139.2,7.1835]
[1720719721493,21.0918,139.24,139.2,7.1835]
[1720719721702,21.0918,139.24,139.2,8.62008726]
[1720719722000,21.0918,139.24,139.2,7.1835]
[1720719725007,13.91,139.29,139.25,7.1811]